fUSD/lending_fUSD_20251102
["ID","MTS","AMOUNT","RATE_DAILY","PERIOD"]
[392866585,1762085585772,-1000.0,0.000147,2]
[392866586,1762085587474,-1000.0,0.000147,2]
[392866587,1762085588643,-1000.0,0.000147,2]
[392866588,1762085589873,-1000.0,0.000147,2]
[392866589,1762085591040,-1000.0,0.000147,2]
[392866590,1762085591990,-1000.0,0.000147,2]
[392866591,1762085593972,-1000.0,0.000147,2]
[392866592,1762085594849,-1000.0,0.000147,2]
[392866593,1762085595620,-1000.0,0.000147,2]
[392866594,1762085596360,-1000.0,0.000147,2]
[392866595,1762085597310,-1000.0,0.000147,2]
[392866596,1762085598208,-410.7095,0.000147,2]
[392866608,1762085610442,-500.0,0.00014849,2]
[392866609,1762085610462,-500.0,0.00014849,2]
[392866614,1762085613216,-500.0,0.00014849,2]
[392866616,1762085627539,-150.0,0.00014899,2]
[392866617,1762085632454,850.0,0.00014139,2]
[392866618,1762085632476,1000.0,0.00014139,2]
[392866619,1762085632498,1000.0,0.00014139,2]
[392866620,1762085632519,163.25,0.00014139,2]
[392866621,1762085644660,-1000.0,0.000149,2]
[392866622,1762085647078,-1000.0,0.000149,2]
[392866624,1762085648917,-215.862,0.000149,2]
[392866625,1762085648943,-719.17955067,0.000149,2]
[392866626,1762085648970,-64.95844933,0.000149,2]
[392866627,1762085650680,-1000.0,0.000149,2]
[392866628,1762085652193,-1000.0,0.000149,2]
[392866629,1762085653139,-1000.0,0.000149,2]
[392866630,1762085653936,-1000.0,0.000149,2]
[392866631,1762085655242,-1000.0,0.000149,2]
[392866632,1762085667695,336.75,0.000147,2]
[392866633,1762085667715,571.2580688,0.000147,2]
[392866634,1762085698684,-1000.0,0.000149,2]
[392866635,1762085698873,428.7419312,0.000147,2]
[392866636,1762085698894,1000.0,0.000147,2]
[392866637,1762085698916,589.2905,0.000147,2]
[392866638,1762085705639,-668.0655688,0.000147,2]
[392866639,1762085705660,-300.0,0.00014899,2]
[392866640,1762085705680,-31.9344312,0.00014899,2]
[392866641,1762085706450,-1000.0,0.00014899,2]
[392866643,1762085707356,-168.0655688,0.00014899,2]
[392866644,1762085707378,-300.0,0.00014899,2]
[392866645,1762085707399,-300.0,0.00014899,2]
[392866646,1762085707420,-231.9344312,0.00014899,2]
[392866650,1762085708772,500.0,0.00015,3]
[392866651,1762085709170,-68.0655688,0.00014899,2]
[392866652,1762085709192,-931.9344312,0.000149,2]
[392866654,1762085709954,-1000.0,0.000149,2]
[392866655,1762085710622,-1000.0,0.000149,2]
[392866656,1762085712072,-1000.0,0.000149,2]
[392866659,1762085713753,-1000.0,0.000149,2]
[392866660,1762085714403,-1000.0,0.000149,2]
[392866661,1762085715091,-323.47741392,0.000149,2]
[392866662,1762085715113,-160.90697574,0.000149,2]
[392866663,1762085716935,512.35861536,0.000149,2]
[392866664,1762085720873,3.25699498,0.0001485,2]
[392866665,1762085749116,500.0,0.00015,3]
[392866668,1762085768643,1448.97,0.00014085,2]
[392866670,1762085792043,161.0,0.00015,3]
[392866671,1762085794992,161.0,0.00015,3]
[392866672,1762085795352,999.0,0.00014085,3]
[392866674,1762085795813,177.44,0.00011268,2]
[392866678,1762085817080,500.0,0.00015,3]
[392866679,1762085847143,163.0,0.000146,2]
[392866680,1762085848898,200.0,0.00014069,2]
[392866683,1762085862003,164.59,0.000146,2]
[392866684,1762085867353,220.94,0.00015,3]
[392866685,1762085875646,1288.81,7.029e-05,2]
[392866686,1762085875845,1288.81,7.399e-05,2]
[392866687,1762085876048,1288.81,7.769e-05,2]
[392866688,1762085876236,1288.81,8.139e-05,2]
[392866689,1762085876451,1288.81,8.509e-05,2]
[392866690,1762085876657,1288.81,8.879e-05,2]
[392866691,1762085876835,113.15,9.249e-05,2]
[392866692,1762085876861,1175.66,9.249e-05,2]
[392866693,1762085877033,1288.81,9.619e-05,2]
[392866694,1762085877245,1288.81,9.989e-05,2]
[392866695,1762085877449,1288.81,0.00010359,2]
[392866696,1762085877646,1288.81,0.00010729,2]
[392866697,1762085877844,1288.81,0.00011099,2]
[392866698,1762085878042,1288.81,0.00011469,2]
[392866699,1762085878244,1091.49,0.00011839,2]
[392866700,1762085878274,197.32,0.00011839,2]
[392866701,1762085878466,1288.81,0.00012209,2]
[392866702,1762085878654,1288.81,0.00012579,2]
[392866703,1762085878854,1288.81,0.00012949,2]
[392866704,1762085879740,1288.81,0.00013319,2]
[392866705,1762085879789,1288.81,0.00013689,2]
[392866706,1762085879838,1288.81,0.00014059,2]
[392866713,1762085927147,344.91,0.00014415,2]
[392866716,1762085957876,221.66766337,0.0001465,2]
[392866718,1762085960713,150.0,0.00014039,2]
[392866737,1762086008622,1353.25233663,0.00014,2]
[392866738,1762086008646,4839.29766337,0.00014,2]
[392866739,1762086010549,5160.71233663,0.00014,2]
[392866740,1762086010570,1031.83766337,0.00014,2]
[392866741,1762086012556,6192.55,0.00014,2]
[392866742,1762086014485,2775.62233663,0.00014,2]
[392866743,1762086014508,3416.92766337,0.00014,2]
[392866744,1762086016433,6192.55,0.000145,2]
[392866779,1762086079477,390.53233663,0.00014615,2]
[392866780,1762086079501,502.68525728,0.00014615,2]
[392866783,1762086104199,7618.21,0.00014025,2]
[392866784,1762086106128,200.60989238,0.00013955,2]
[392866787,1762086123573,250.0,0.00014025,2]
[392866792,1762086206063,166.67,0.00014454,2]
[392866817,1762086307513,150.0,0.00013488,2]
[392866818,1762086307591,150.0,0.00014237,2]
[392866819,1762086310479,961.83485034,0.00014,2]
[392866820,1762086310503,3166.52514966,0.00014,2]
[392866821,1762086311336,150.0,0.00013488,2]
[392866822,1762086311401,150.0,0.00013862,2]
[392866823,1762086311464,150.0,0.00014237,2]
[392866824,1762086311537,150.0,0.00014612,2]
[392866825,1762086311645,150.0,0.00013488,2]
[392866826,1762086311688,150.0,0.00013638,2]
[392866827,1762086311755,150.0,0.00013787,2]
[392866828,1762086311824,150.0,0.00013937,2]
[392866829,1762086311896,150.0,0.00014087,2]
[392866830,1762086311965,150.0,0.00014237,2]
[392866831,1762086312033,150.0,0.00014387,2]
[392866832,1762086312106,150.0,0.00014537,2]
[392866833,1762086312399,4128.36,0.00014,2]
[392866834,1762086314331,905.12485034,0.00014,2]
[392866835,1762086314354,3223.23514966,0.00014,2]
[392866836,1762086315024,150.0,0.00013488,2]
[392866837,1762086315083,150.0,0.00014237,2]
[392866838,1762086315122,5516.0,0.000102,5]
[392866839,1762086315343,4484.0,0.000101,3]
[392866840,1762086316224,4128.36,0.00014,2]
[392866841,1762086317028,150.0,0.00013488,2]
[392866842,1762086317072,150.0,0.00014237,2]
[392866843,1762086318191,2048.41485034,0.000145,2]
[392866844,1762086318216,2079.94514966,0.000145,2]
[392866845,1762086319811,-150.0,0.00014687,2]
[392866846,1762086320211,150.0,0.00013488,2]
[392866847,1762086320259,150.0,0.00013538,2]
[392866848,1762086320316,150.0,0.00013588,2]
[392866849,1762086320365,150.0,0.00013638,2]
[392866850,1762086320428,150.0,0.00013687,2]
[392866851,1762086320476,150.0,0.00013737,2]
[392866852,1762086320523,150.0,0.00013787,2]
[392866853,1762086320559,150.0,0.00013837,2]
[392866854,1762086320603,150.0,0.00013887,2]
[392866855,1762086320674,150.0,0.00013937,2]
[392866856,1762086320729,150.0,0.00013987,2]
[392866857,1762086320785,150.0,0.00014037,2]
[392866858,1762086320855,150.0,0.00014087,2]
[392866859,1762086320933,150.0,0.00014137,2]
[392866860,1762086320991,150.0,0.00014187,2]
[392866861,1762086321076,150.0,0.00014237,2]
[392866862,1762086321141,150.0,0.00014287,2]
[392866863,1762086321207,150.0,0.00014337,2]
[392866864,1762086321285,150.0,0.00014387,2]
[392866865,1762086321357,150.0,0.00014437,2]
[392866866,1762086321424,150.0,0.00014487,2]
[392866867,1762086321496,150.0,0.00014537,2]
[392866868,1762086321526,-222.58167853,0.00014701,2]
[392866869,1762086321575,104.07601512,0.00014587,2]
[392866870,1762086321598,45.92398488,0.00014587,2]
[392866871,1762086321657,150.0,0.00014637,2]
[392866872,1762086321890,150.0,0.00014687,2]
[392866873,1762086323791,150.0,0.00013488,2]
[392866874,1762086324449,1018.63726732,0.000108,2]
[392866877,1762086332485,150.0,0.00013488,2]
[392866878,1762086332528,268.1496886,0.00013488,2]
[392866879,1762086335436,150.0,0.00013488,2]
[392866880,1762086335479,150.0,0.00013987,2]
[392866881,1762086335554,150.0,0.00014487,2]
[392866882,1762086346192,5516.0,0.000102,5]
[392866883,1762086346418,4484.0,0.000101,3]
[392866884,1762086351658,520.0,0.00017012,120]
[392866885,1762086352533,4017.2990592,0.0001399,2]
[392866886,1762086352556,10000.01,0.0001399,2]
[392866887,1762086352578,10000.01,0.0001399,2]
[392866888,1762086352600,10000.01,0.0001399,2]
[392866889,1762086352623,1104.65486153,0.0001399,2]
[392866891,1762086360753,4842.21263213,8e-05,2]
[392866892,1762086377979,5516.0,0.000122,5]
[392866893,1762086378314,5516.0,0.000121,3]
[392866894,1762086378543,4053.14250634,0.00012,2]
[392866895,1762086378574,10000.01,0.00012,2]
[392866896,1762086378605,10000.01,0.00012,2]
[392866897,1762086378638,2730.83749366,0.00012,2]
[392866899,1762086392967,150.0,0.00013935,2]
[392866901,1762086403138,1174.64424711,0.000145,2]
[392866905,1762086435086,500.0,0.00012012,2]
[392866906,1762086441132,366.79628649,0.00014634,2]
[392866907,1762086444240,326.65407,0.00012012,2]
[392866908,1762086453003,1054.0,0.00014565,2]
[392866909,1762086455188,200.0,0.00013932,2]
[392866911,1762086457781,1054.0,0.00014676,2]
[392866920,1762086496677,166.66,0.00013699,2]
[392866923,1762086496887,166.66,0.00013879,2]
[392866924,1762086497089,166.66,0.00014059,2]
[392866925,1762086497288,166.66,0.00014239,2]
[392866926,1762086497498,166.66,0.00014419,2]
[392866927,1762086497899,166.66,0.00014598,2]
[392866940,1762086524621,1443.11790274,0.00013928,2]
[392866941,1762086524643,10000.01,0.00013928,2]
[392866942,1762086524665,264.76209726,0.00013928,2]
[392866945,1762086587639,893.21759391,0.00014548,2]
[392866961,1762086631837,-195.0,0.00014727,2]
[392866962,1762086631848,-150.0,0.00014737,2]
[392866963,1762086631858,-150.0,0.00014786,2]
[392866964,1762086631868,-500.0,0.000148,2]
[392866965,1762086631877,-1200.0,0.000148,2]
[392866966,1762086631887,-300.0,0.000148,2]
[392866967,1762086631897,-1200.0,0.000148,2]
[392866968,1762086631907,-300.0,0.000148,2]
[392866969,1762086631916,-2567.0241911,0.00014802,2]
[392866970,1762086631926,-3103.8334251,0.00014802,2]
[392866971,1762086631936,-150.0,0.00014805,2]
[392866972,1762086631945,-34692.7511162,0.00014806,2]
[392866973,1762086631955,-150.0,0.00014836,2]
[392866974,1762086631966,-150.0,0.00014836,2]
[392866975,1762086631975,-500.0,0.00014877,2]
[392866976,1762086631985,-416.0,0.00014877,2]
[392866977,1762086631995,-582.40455818,0.00014884,2]
[392866978,1762086632005,-582.4045581,0.00014886,2]
[392866979,1762086632015,-150.0,0.00014886,2]
[392866980,1762086632025,-582.4045581,0.00014888,2]
[392866981,1762086632037,-582.4045581,0.00014889,2]
[392866982,1762086632046,-582.4045581,0.00014891,2]
[392866983,1762086632056,-582.4045581,0.00014893,2]
[392866984,1762086632066,-582.4045581,0.00014895,2]
[392866985,1762086632077,-582.4045581,0.00014896,2]
[392866986,1762086632087,-582.4045581,0.00014898,2]
[392866987,1762086632096,-1690.782,0.00014899,2]
[392866988,1762086632106,-177.255,0.00014899,2]
[392866990,1762086632116,-5000.0,0.000149,2]
[392866992,1762086632126,-161.0,0.000149,2]
[392866994,1762086632136,-161.0,0.000149,2]
[392866995,1762086632147,-161.0,0.000149,2]
[392866996,1762086632156,-161.0,0.000149,2]
[392866997,1762086632166,-161.0,0.000149,2]
[392866998,1762086632175,-180.430816,0.000149,2]
[392866999,1762086632185,-10000.01,0.000149,2]
[392867000,1762086632196,-1364.6040488,0.000149,2]
[392867001,1762086632206,-582.4045581,0.000149,2]
[392867002,1762086632215,-159.20554132,0.000149,2]
[392867003,1762086632224,-150.0,0.00014936,2]
[392867006,1762086632233,-477.45087779,0.00014956,2]
[392867008,1762086632244,-500.0,0.00014959,2]
[392867009,1762086632254,-500.0,0.00014959,2]
[392867012,1762086632265,-500.0,0.00014959,2]
[392867014,1762086632274,-201.55846253,0.00014959,2]
[392867015,1762086632283,-500.0,0.00014959,2]
[392867016,1762086632292,-500.0,0.00014959,2]
[392867017,1762086632302,-500.0,0.00014959,2]
[392867018,1762086632311,-395.25413118,0.00014959,2]
[392867019,1762086632322,-6517.62566,0.0001496,2]
[392867020,1762086632331,-500.0,0.00014973,2]
[392867021,1762086632342,-500.0,0.00014973,2]
[392867022,1762086632352,-198.02912071,0.00014973,2]
[392867023,1762086632362,-199.20249056,0.00014973,2]
[392867024,1762086632372,-500.0,0.00014973,2]
[392867025,1762086632382,-215.18267808,0.00014973,2]
[392867026,1762086632392,-500.0,0.00014973,2]
[392867027,1762086632401,-500.0,0.00014973,2]
[392867028,1762086632418,-500.0,0.00014973,2]
[392867029,1762086632431,-500.0,0.00014973,2]
[392867030,1762086632441,-510.93598988,0.00014973,2]
[392867031,1762086632451,-500.0,0.00014973,2]
[392867032,1762086632462,-500.0,0.00014973,2]
[392867033,1762086632474,-500.0,0.00014973,2]
[392867034,1762086632484,-500.0,0.00014973,2]
[392867035,1762086632497,-500.0,0.00014973,2]
[392867036,1762086632506,-500.0,0.00014973,2]
[392867037,1762086632516,-1929.8880075,0.00014978,2]
[392867038,1762086632526,-42504.14333173,0.0001498,2]
[392867039,1762086632541,-23456.73927882,0.0001498,2]
[392867040,1762086632569,-661.2693431,0.0001498,2]
[392867041,1762086632593,-3540.19394396,0.0001498,2]
[392867044,1762086637675,-994.70450946,0.0001485,2]
[392867045,1762086637733,-3260.19467373,0.0001485,2]
[392867047,1762086637961,-2262.72648681,0.0001485,2]
[392867049,1762086637970,-4379.62930358,0.000149,2]
[392867051,1762086637981,-620.37069642,0.000149,2]
[392867053,1762086637991,-17550.53737102,0.0001498,2]
[392867055,1762086638001,-332.85100472,0.00014983,2]
[392867057,1762086638011,-210.20056857,0.00014983,2]
[392867059,1762086638020,-420.55974712,0.00014983,2]
[392867061,1762086638030,-905.0,0.00014984,2]
[392867063,1762086638039,-666.471,0.00014984,2]
[392867065,1762086638048,-6630.0,0.00014984,2]
[392867068,1762086638059,-4664.32271425,0.00014984,2]
[392867077,1762086639783,-1803.67728575,0.00014984,2]
[392867078,1762086639793,-559.0,0.00014984,2]
[392867079,1762086639803,-278.41439129,0.00014986,2]
[392867080,1762086639813,-174.31585873,0.00014986,2]
[392867081,1762086639823,-275.90982296,0.00014986,2]
[392867082,1762086639832,-244.62036251,0.00014986,2]
[392867083,1762086639842,-228.17259868,0.00014986,2]
[392867084,1762086639851,-211.99126866,0.00014986,2]
[392867085,1762086639860,-150.62508081,0.00014986,2]
[392867086,1762086639870,-164.86456575,0.0001499,2]
[392867087,1762086639879,-159.60825402,0.0001499,2]
[392867088,1762086639888,-496.47127164,0.00014991,2]
[392867089,1762086639897,-151.0,0.00014991,2]
[392867090,1762086639907,-500.0,0.00014991,2]
[392867091,1762086639915,-500.0,0.00014991,2]
[392867092,1762086639925,-214.26309035,0.00014991,2]
[392867093,1762086639934,-500.0,0.00014991,2]
[392867094,1762086639943,-500.0,0.00014991,2]
[392867095,1762086639952,-209.40437684,0.00014991,2]
[392867096,1762086639961,-500.0,0.00014991,2]
[392867097,1762086639971,-500.0,0.00014991,2]
[392867098,1762086639981,-500.0,0.00014991,2]
[392867099,1762086639991,-500.0,0.00014991,2]
[392867100,1762086640001,-500.0,0.00014991,2]
[392867101,1762086640011,-500.0,0.00014991,2]
[392867102,1762086640020,-500.0,0.00014991,2]
[392867103,1762086640031,-500.0,0.00014991,2]
[392867104,1762086640041,-141.58577201,0.00014991,2]
[392867114,1762086640673,-358.41422799,0.00014991,2]
[392867115,1762086640683,-151.0,0.00014991,2]
[392867116,1762086640693,-151.0,0.00014991,2]
[392867117,1762086640702,-151.0,0.00014991,2]
[392867118,1762086640711,-291.98475699,0.00014991,2]
[392867119,1762086640721,-537.08558409,0.00014998,2]
[392867120,1762086640730,-2817.06100674,0.00014999,2]
[392867121,1762086640810,-525.8,0.00014999,2]
[392867122,1762086640821,-7539.07550824,0.00014999,2]
[392867123,1762086640831,-500.0,0.00014999,2]
[392867124,1762086640840,-150.0,0.00014999,2]
[392867125,1762086640852,-500.0,0.00014999,2]
[392867126,1762086640861,-3.50674956,0.00014999,2]
[392867127,1762086640887,-146.49325044,0.00014999,2]
[392867128,1762086640897,-151.37163978,0.00014999,2]
[392867129,1762086640906,-150.0,0.00014999,2]
[392867130,1762086640915,-150.77091693,0.00014999,2]
[392867131,1762086640925,-500.0,0.00014999,2]
[392867132,1762086640934,-150.0,0.00014999,2]
[392867133,1762086640944,-187.46535382,0.00014999,2]
[392867134,1762086640956,-1102.37464618,0.00014999,2]
[392867135,1762086640966,-500.0,0.00014999,2]
[392867136,1762086640975,-455.07554772,0.00014999,2]
[392867137,1762086640987,-44.92445228,0.00014999,2]
[392867138,1762086640996,-280.00434195,0.00014999,2]
[392867139,1762086641007,-219.99565805,0.00014999,2]
[392867140,1762086641016,-378.68055955,0.00014999,2]
[392867141,1762086641027,-121.31944045,0.00014999,2]
[392867142,1762086641036,-500.0,0.00014999,2]
[392867143,1762086641045,-500.0,0.00014999,2]
[392867144,1762086641054,-500.0,0.00014999,2]
[392867145,1762086641065,-500.0,0.00014999,2]
[392867146,1762086641074,-500.0,0.00014999,2]
[392867147,1762086641085,-236.0891389,0.00014999,2]
[392867148,1762086641097,-92.7508611,0.00014999,2]
[392867149,1762086641108,-150.0,0.00014999,2]
[392867150,1762086641117,-290.50271738,0.00014999,2]
[392867151,1762086641127,-150.0,0.00014999,2]
[392867152,1762086641137,-500.0,0.00014999,2]
[392867153,1762086641147,-500.0,0.00014999,2]
[392867154,1762086641156,-14286.54496804,0.00014999,2]
[392867155,1762086641167,-1102.23953539,0.00014999,2]
[392867156,1762086641176,-150.0,0.00014999,2]
[392867157,1762086641185,-0.73982828,0.00014999,2]
[392867158,1762086641204,-149.26017172,0.00014999,2]
[392867159,1762086641213,-150.0,0.00014999,2]
[392867160,1762086641222,-156.15889261,0.00014999,2]
[392867161,1762086641231,-150.0,0.00014999,2]
[392867162,1762086641241,-150.0,0.00014999,2]
[392867163,1762086641250,-150.0,0.00014999,2]
[392867164,1762086641260,-556.63917551,0.00014999,2]
[392867165,1762086641270,-150.0,0.00014999,2]
[392867166,1762086641279,-500.0,0.00014999,2]
[392867167,1762086641289,-500.0,0.00014999,2]
[392867168,1762086641299,-703.0,0.00014999,2]
[392867169,1762086641310,-247.47629096,0.00015,2]
[392867178,1762086642925,-711.29295566,0.00014777,2]
[392867179,1762086642934,-160278.70487108,0.00015,2]
[392867180,1762086642946,-388.83167379,0.00015,2]
[392867181,1762086642957,-13800.45824665,0.00015,2]
[392867182,1762086642982,-480.0,0.00015,2]
[392867199,1762086646066,-160.90697574,0.000149,2]
[392867200,1762086646076,-340.19156173,0.00015,2]
[392867209,1762086672026,245.0,0.0001459,2]
[392867211,1762086677876,245.0,0.00014558,2]
[392867223,1762086696847,576.0,0.00014643,2]
[392867231,1762086729172,2751.0,0.00014132,2]
[392867232,1762086735455,500.0,0.00012012,2]
[392867233,1762086735503,500.0,0.00012012,2]
[392867234,1762086735547,500.0,0.00012012,2]
[392867235,1762086735616,500.0,0.00012012,2]
[392867236,1762086735859,500.0,0.00012012,2]
[392867237,1762086735950,500.0,0.00012012,2]
[392867238,1762086736197,500.0,0.00012012,2]
[392867239,1762086736337,500.0,0.00011015,2]
[392867240,1762086736432,500.00000016,0.00012012,2]
[392867241,1762086736552,500.0,0.00012012,2]
[392867242,1762086736646,25.03030867,0.00011015,2]
[392867243,1762086736669,491.60377365,0.00011015,2]
[392867244,1762086736873,500.0,0.00011015,2]
[392867245,1762086737446,500.0,0.00011015,2]
[392867247,1762086737622,500.0,0.00011015,2]
[392867248,1762086737968,797.50207144,0.00011015,2]
[392867249,1762086743864,600.0,0.00012012,2]
[392867250,1762086744003,600.0,0.00012012,2]
[392867251,1762086744290,600.0,0.00012012,2]
[392867252,1762086744649,600.0,0.00012012,2]
[392867253,1762086745063,600.0,0.00012012,2]
[392867254,1762086745367,600.0,0.00012012,2]
[392867255,1762086745750,600.0,0.00012012,2]
[392867256,1762086746099,600.0,0.00012012,2]
[392867257,1762086746441,600.0,0.00012012,2]
[392867258,1762086746758,600.0,0.00012012,2]
[392867259,1762086747097,600.0,0.00012012,2]
[392867260,1762086747459,600.0,0.00012012,2]
[392867261,1762086747807,10.90415491,0.00012012,2]
[392867262,1762086747829,589.09584509,0.00012012,2]
[392867263,1762086748147,600.0,0.00011015,2]
[392867264,1762086748516,600.0,0.00011015,2]
[392867265,1762086748840,600.0,0.00011015,2]
[392867266,1762086749034,581.25542615,0.00012012,2]
[392867267,1762086749091,500.0,0.00012012,2]
[392867268,1762086749206,600.0,0.00011015,2]
[392867269,1762086749388,666.0,0.00012012,2]
[392867270,1762086749536,600.0,0.00011015,2]
[392867271,1762086749883,600.0,0.00011015,2]
[392867272,1762086749934,500.0,0.00011015,2]
[392867273,1762086750237,600.0,0.00011015,2]
[392867274,1762086750589,600.0,0.00011015,2]
[392867275,1762086750922,600.0,0.00011015,2]
[392867276,1762086751077,501.36195473,0.00012012,2]
[392867277,1762086751558,600.0,0.00011015,2]
[392867278,1762086751673,600.0,0.00011015,2]
[392867279,1762086752291,62.29677403,0.00011015,2]
[392867280,1762086752319,537.70322597,0.00011015,2]
[392867281,1762086752430,673.34593,0.00011015,2]
[392867282,1762086752746,155.90316145,0.00012012,2]
[392867287,1762086763446,467.808836,0.00014626,2]
[392867292,1762086799166,8165.24884658,0.00014146,2]
[392867293,1762086799188,4326.28115342,0.00014146,2]
[392867294,1762086801259,5673.72884658,0.00014238,2]
[392867295,1762086801282,1678.12112493,0.00014238,2]
[392867296,1762086810653,646.62597852,0.00012012,2]
[392867298,1762086840575,1343.884608,0.00014626,2]
[392867300,1762086880323,6331.37828855,0.00014035,2]
[392867301,1762086880346,2684.95171145,0.00014035,2]
[392867302,1762086893911,168.0,0.00014563,2]
[392867303,1762086898735,168.0,0.00014583,2]
[392867304,1762086905181,168.0,0.00014336,2]
[392867305,1762086918128,-332.5342894,0.0001469,2]
[392867310,1762086921201,-500.0,0.0001469,2]
[392867323,1762086931466,4323.27,0.00014666,2]
[392867324,1762086932614,262.2,0.00014007,2]
[392867343,1762087005207,179.23,0.00013864,2]
[392867344,1762087025311,500.0,0.000146,2]
[392867345,1762087030293,1546.35828855,0.000146,2]
[392867346,1762087030316,148.42509589,0.000146,2]
[392867347,1762087034996,500.0,0.00012012,2]
[392867348,1762087035040,500.0,0.00012012,2]
[392867349,1762087035310,500.0,0.00012012,2]
[392867350,1762087035375,500.0,0.00012012,2]
[392867351,1762087035711,500.0,0.00012012,2]
[392867352,1762087035746,500.0,0.00012012,2]
[392867353,1762087036045,500.0,0.00012012,2]
[392867354,1762087036082,500.0,0.00012012,2]
[392867355,1762087036383,500.0,0.00012012,2]
[392867356,1762087036422,500.0,0.00012012,2]
[392867357,1762087036468,500.0,0.00012012,2]
[392867358,1762087036543,500.7,0.00012012,2]
[392867360,1762087036717,500.0,0.00011015,2]
[392867361,1762087036763,500.0,0.00012012,2]
[392867362,1762087036927,500.0,0.00012012,2]
[392867363,1762087037083,500.0,0.00011015,2]
[392867364,1762087037122,500.0,0.00012012,2]
[392867365,1762087037260,500.0,0.00012012,2]
[392867366,1762087037426,500.0,0.00011015,2]
[392867367,1762087037475,350.88490411,0.00011015,2]
[392867368,1762087037500,149.11509589,0.00011015,2]
[392867369,1762087037635,500.0,0.00012012,2]
[392867370,1762087037761,500.0,0.00011015,2]
[392867371,1762087037819,500.0,0.00011015,2]
[392867372,1762087037962,500.0,0.00012012,2]
[392867373,1762087038307,501.73502552,0.00011015,2]
[392867374,1762087038353,675.28731785,0.00011015,2]
[392867375,1762087038445,500.0,0.00011015,2]
[392867376,1762087038488,500.0,0.00012012,2]
[392867377,1762087038529,315.66369434,0.00012012,2]
[392867378,1762087038674,500.0,0.00012012,2]
[392867379,1762087038715,500.0,0.00011015,2]
[392867380,1762087039024,500.0,0.00012012,2]
[392867381,1762087039062,500.0,0.00011015,2]
[392867382,1762087039384,500.0,0.00011015,2]
[392867383,1762087039426,500.0,0.00012012,2]
[392867384,1762087039566,500.0,0.00012012,2]
[392867385,1762087039738,500.0,0.00012012,2]
[392867386,1762087040097,500.0,0.00011015,2]
[392867387,1762087040186,500.0,0.00012012,2]
[392867388,1762087040800,358.2088664,0.00012012,2]
[392867389,1762087040823,141.7911336,0.00012012,2]
[392867390,1762087040863,500.0,0.00011015,2]
[392867391,1762087040898,810.0,0.00012012,2]
[392867392,1762087041012,500.0,0.00012012,2]
[392867393,1762087041064,500.0,0.00012012,2]
[392867394,1762087041143,500.0,0.00011015,2]
[392867395,1762087041183,500.0,0.00011015,2]